Cogmind - Beta 16 @@@ ROGUE MODE // 2025.10.22 @ 15:55:55 Player: opdo Result: Self-destructed Performance ------------- Evolutions (5) 2500 Regions Visited (8) 1600 Robots Destroyed (44) 220 Value Destroyed (1313) 1313 Prototype IDs (27) 540 Alien Tech Used (0) 0 Bonus (1910) 1910 TOTAL SCORE: 8083 Bonus ------- Follower Combat Kills 123 Registered with UFD 300 Met Optimus in HQ 500 Met Warlord at Base 500 MAIN.C Attacked Warlord 500 Friendly Fire -13 Cogmind --------- Core Integrity 621/1000 Matter 265/300 Energy 293/315 System Corruption 0% Temperature Cool (0) Movement Flying (360) Ox4 Location -5/Warlord Parts ------- > --- POWER (2) -------- Backup Power III Neutrino Core (fused) > --- PROPULSION (6) --- Nuclear Pulse Thruster > --- UTILITY (7) ------ Machine Analyzer Advanced Melee Analysis Suite Advanced Melee Analysis Suite Improved Transmission Jammer Advanced Reaction Control System Improved Core Shielding System Shield > --- WEAPON (2) ------- Companion Sword > --- INVENTORY (5) ---- Advanced Terrain Scanner Core Analyzer Microactuators Advanced Drone Bay (2/2) Peak State ------------ > --- POWER ------------ Neutrino Core Neutrino Core > --- PROPULSION ------- Nuclear Pulse Thruster Flightbrick > --- UTILITY ---------- Large Storage Unit Machine Analyzer Advanced Signal Interpreter Experimental Terrain Scan Processor Advanced Melee Analysis Suite Microactuators Advanced Reaction Control System Cloaking Device System Shield Advanced System Shield > --- WEAPON ----------- Companion Sword > --- INVENTORY -------- Wheel IFF Parser Advanced Terrain Scanner Advanced Melee Analysis Suite Core Analyzer Core Analyzer Microactuators Improved Transmission Jammer Improved Core Shielding Advanced Drone Bay Coil Gun KE Penetrator Rocket Launcher [Rating: 112] Favorites ----------- Power Subdweller Power Source Engine Subdweller Power Source Power Core Neutrino Core Propulsion Light Treads Treads Light Treads Leg Aluminum Leg Wheel Subdweller Monowheel Flight Unit Xenon Bombardment Thruster Utility Large Storage Unit Device Advanced Reaction Control System Storage Large Storage Unit Processor Advanced Targeting Computer Hackware System Shield Protection Core Shielding Weapon Field Laser Energy Gun Field Laser Ballistic Gun Assault Rifle Launcher Grenade Launcher Special Weapon Mining Laser Slashing Weapon Companion Sword Special Melee Weapon Datajack Build | -11 -10 -10 -10 -7 -5 -5 -5 -5 ------- Run | Yrd Mat Min Sub Scr Fac Upp Upp War Slots Evolved 10 | . . . . . 10 . . . Power 1 | . . . . . 1 . . . Propulsion 4 | . . . . . 4 . . . Utility 5 | . . . . . 5 . . . Weapon . | . . . . . . . . . Parts Attached 70 | 7 5 6 11 12 17 5 4 3 Power 14 | 1 . 1 2 2 4 3 1 . Engine 7 | 1 . . 2 1 2 1 . . Core 7 | . . 1 . 1 2 2 1 . Reactor . | . . . . . . . . . Propulsion 16 | 2 1 . 6 4 2 . 1 . Treads 3 | 2 1 . . . . . . . Leg 5 | . . . 3 2 . . . . Wheel 4 | . . . 3 1 . . . . Hover . | . . . . . . . . . Flight 4 | . . . . 1 2 . 1 . Utility 27 | 2 2 2 . 3 11 2 2 3 Device 10 | 1 . 1 . . 4 2 1 1 Storage 3 | 1 1 . . 1 . . . . Processor 9 | . . 1 . 2 4 . 1 1 Hackware 2 | . . . . . 2 . . . Protection 3 | . 1 . . . 1 . . 1 Artifact . | . . . . . . . . . Weapon 13 | 2 2 3 3 3 . . . . Energy Gun 7 | 2 . 2 1 2 . . . . Energy Cannon . | . . . . . . . . . Ballistic Gun 1 | . . 1 . . . . . . Ballistic Cannon . | . . . . . . . . . Launcher 2 | . 1 . 1 . . . . . Special Weapon 1 | . . . 1 . . . . . Impact Weapon . | . . . . . . . . . Slashing Weapon 1 | . . . . 1 . . . . Piercing Weapon . | . . . . . . . . . Special Melee Weapon 1 | . 1 . . . . . . . Unidentified Prototypes 1 | . . . . 1 . . . . Parts Lost 18 | . . 1 7 . 2 6 1 1 Power 4 | . . . 1 . 1 1 1 . Propulsion 7 | . . . 4 . . 2 . 1 Utility 4 | . . . . . 1 3 . . Weapon 3 | . . 1 2 . . . . . Highest Loss Streak 4 | . . 1 4 . 1 3 1 1 To Critical Strikes . | . . . . . . . . . Average Backups 12 | 1 10 14 12 11 11 14 12 14 Power . | . 1 1 1 . . . . . Propulsion 2 | 1 3 5 2 2 2 1 1 2 Utility 5 | . . 4 4 6 7 10 9 9 Weapon 3 | . 4 4 4 2 2 2 2 3 Tool/Special . | . . . . . . . . . Unused Backups 35 | . 5 2 7 8 2 1 . 10 Power 4 | . 2 . 1 1 . . . . Propulsion 6 | . . . 3 . 1 . . 2 Utility 13 | . 2 . 1 4 1 . . 5 Weapon 11 | . 1 2 2 2 . 1 . 3 Tool/Special 1 | . . . . 1 . . . . Average Slot Usage (%) 84 | . 100 100 94 80 66 70 66 65 Engine 7 | . 14 4 9 8 6 4 . 3 Core 4 | . . 9 4 2 2 3 5 5 Treads 7 | . 28 28 3 . . . . . Leg 8 | . . . 15 17 . . . . Wheel 2 | . . . 6 5 . . . . Flight 3 | . . . . 2 14 12 7 10 Device 2 | . 3 . . . 10 4 11 5 Storage 11 | . 14 14 14 14 5 5 5 5 Processor 13 | . . 10 14 14 17 24 20 20 Hackware 1 | . . . . . 3 10 10 10 Protection 1 | . 10 3 . . 2 . . . Energy Gun 13 | . 25 26 23 7 . . . . Slashing Weapon 3 | . . . . 8 5 5 5 5 Peak Build Rating 112 | 7 8 17 21 34 104 108 112 112 Average Rating 38 | 5 7 14 18 25 89 99 101 100 On Entrance 43 | . 7 8 17 17 34 104 88 112 Avg Prop Armor Cover (%) 5 | . . . 7 7 2 . . . Naked Turns . | . . . . . . . . . Heaviest Build 58 | 13 31 34 33 34 45 48 58 58 Greatest Support 47 | 40 40 40 40 37 47 47 30 30 Greatest Overweight (x) 10 | . . . 9 10 1 2 1 1 Average Overweight (x) . | . . . . . . . 1 . Largest Inventory Capacity 15 | 8 15 15 15 15 15 15 15 15 Average Capacity 14 | 7 11 15 15 15 15 15 15 14 Most Carried 15 | 5 15 15 15 15 15 15 15 15 Average Carried 13 | 2 10 14 14 14 12 15 13 14 Final Capacity 15 | 8 15 15 15 15 15 15 15 5 Final Carried 15 | 5 15 15 15 15 15 15 15 5 Class Distribution -------------------- 78% | Mutant 19% | Hacker-Mutant Dominant Class ---------------- Mutant | -10/Materials Mutant | -10/Mines Mutant | -10/Subcaves Mutant | -7/Scraptown Mutant | -5/Factory Hacker-Mutant | -5/Upper Caves Hacker-Mutant | -5/Upper Caves Hacker-Mutant | -5/Warlord Resources | -11 -10 -10 -10 -7 -5 -5 -5 -5 ----------- Run | Yrd Mat Min Sub Scr Fac Upp Upp War Matter Collected 941 | 270 30 105 135 120 165 55 61 . Remotely 19 | 19 . . . . . . . . Salvage Created 1824 | 151 222 147 304 . 441 391 168 . Parts 106 | 6 20 6 19 . 28 18 9 . Haulers Intercepted 1 | . 1 . . . . . . . Recyclers Shooed 2 | . . 2 . . . . . . Parts Field Recycled . | . . . . . . . . . Retrieved Matter . | . . . . . . . . . Parts Self-Destructed 30 | . . . 11 . . 15 4 . Prevented 2 | . . . . . . 2 . . Parts Restored . | . . . . . . . . . Kills | -11 -10 -10 -10 -7 -5 -5 -5 -5 ------- Run | Yrd Mat Min Sub Scr Fac Upp Upp War Combat Hostiles Destroyed 29 | . 8 3 9 . 3 4 2 . Melee 9 | . . . . . 3 4 2 . Guns 15 | . 5 3 7 . . . . . AOE 5 | . 3 . 2 . . . . . Classes Destroyed 14 | 2 4 1 1 . 3 2 1 . Worker 5 | . . . . . 5 . . . Tunneler 3 | 2 1 . . . . . . . Hauler 1 | . 1 . . . . . . . Recycler 2 | 1 . . . . 1 . . . Mechanic 1 | . . 1 . . . . . . Operator 2 | . . . . . 2 . . . Watcher 1 | . 1 . . . . . . . Swarmer 6 | . 6 . . . . . . . Grunt 7 | . 2 3 . . 2 . . . Sentry 3 | . . . . . 1 1 1 . Programmer 3 | . . . . . . 3 . . Subdweller 9 | . . . 9 . . . . . Decomposer 1 | . . . . . . 1 . . Samaritan 1 | . . . . . . 1 . . Mutant 1 | . . . . . . . 1 . Best Kill Streak 4 | 3 4 4 4 . 4 1 1 . Combat Bots Only 4 | . 3 3 4 . 2 1 1 . Max Kills in Single Turn 4 | 1 4 1 2 . 1 1 1 . Gunslinging . | . . . . . . . . . Exploded 3 | . 3 . 2 . . . . . Melee 1 | . . . . . 1 1 1 . Uniques/NPCs Destroyed . | . . . . . . . . . Combat | -11 -10 -10 -10 -7 -5 -5 -5 -5 -------- Run | Yrd Mat Min Sub Scr Fac Upp Upp War Hostile Shots Fired 325 | . 37 24 41 . 31 118 63 11 Missed 97 | . 9 5 10 . 12 36 20 5 Hits 228 | . 28 19 31 . 19 82 43 6 Projectile 228 | . 28 19 31 . 19 82 43 6 AOE 3 | . . . . . . . . 3 Critical Strikes 8 | . . . 1 . 1 2 3 1 Part Disruptions 2 | . . . . . . 1 1 . Damage Taken 4187 | . 286 249 774 . 469 1367 829 213 Core 586 | . 31 17 159 . 69 279 31 . Absorbed by Shields . | . . . . . . . . . Redirected to Shielding 66 | . 7 4 . . 31 24 . . Core Remaining (%) 58 | 100 . . . 17 . . . . Volleys Fired 66 | 3 20 12 31 . . . . . Largest 2 | 2 2 2 2 . . . . . Hottest 163 | 90 90 90 163 . . . . . Shots Fired 126 | 6 39 24 57 . . . . . Gun 115 | 6 38 24 47 . . . . . Cannon . | . . . . . . . . . Launcher 4 | . 1 . 3 . . . . . Special 7 | . . . 7 . . . . . Kinetic 4 | . . 4 . . . . . . Thermal 110 | 6 38 20 46 . . . . . Explosive 4 | . 1 . 3 . . . . . Electromagnetic 8 | . . . 8 . . . . . Robot Hit Streak 24 | 3 9 7 24 . . . . . Robot Miss Streak 3 | 2 3 1 1 . . . . . Penetration Max . | . . . . . . . . . Secondary Targets 3 | . 1 1 1 . . . . . Max Gunslinging Chain 1 | . 1 1 1 . . . . . Shots Hit Robots 142 | 3 27 20 41 . 26 18 7 . Core Hits 65 | 4 14 9 18 . 8 7 5 . Critical Kills . | . . . . . . . . . Critical Parts Destroyed . | . . . . . . . . . Critical Strikes 1 | . . . 1 . . . . . Burn 1 | . . . 1 . . . . . Melee Attacks 86 | . 6 . . . 45 27 8 . Impact . | . . . . . . . . . Slashing 80 | . . . . . 45 27 8 . Piercing . | . . . . . . . . . Sneak Attacks 19 | . 5 . . . 11 3 . . Combat Hostiles 3 | . . . . . 2 1 . . Follow-up Attacks . | . . . . . . . . . Damage Inflicted 4629 | 50 432 322 1021 . 1594 937 273 . Guns 1225 | 49 246 281 649 . . . . . Cannons . | . . . . . . . . . Explosions 554 | . 182 . 372 . . . . . Melee 2804 | . . . . . 1594 937 273 . Ramming 46 | 1 4 41 . . . . . . Kinetic 56 | . . 56 . . . . . . Thermal 1028 | 49 246 225 508 . . . . . Explosive 554 | . 182 . 372 . . . . . Electromagnetic 141 | . . . 141 . . . . . Impact . | . . . . . . . . . Slashing 2804 | . . . . . 1594 937 273 . Piercing . | . . . . . . . . . Highest Corruption 4 | . . . . . . 4 4 4 Average Corruption 3 | . . . . . . 3 4 4 Corruption Purged . | . . . . . . . . . Corruption Blocked . | . . . . . . . . . Effects 13 | . . . . . . 5 7 1 Message Errors 6 | . . . . . . 3 2 1 Matter Fused 1 | . . . . . . . 1 . Energy Discharges 3 | . . . . . . 1 2 . Parts Fused 1 | . . . . . . . 1 . Data Loss (minor) 2 | . . . . . . 1 1 . Overload Shots . | . . . . . . . . . Overflow Damage 476 | . 27 . . . 310 139 . . Projectiles . | . . . . . . . . . Explosions 27 | . 27 . . . . . . . Melee 449 | . . . . . 310 139 . . Knockbacks 1 | . . 1 . . . . . . Impact 1 | . . 1 . . . . . . Kinetic . | . . . . . . . . . Secondary . | . . . . . . . . . Self-Inflicted Damage 71 | . . . 71 . . . . . Shots 3 | . . . 3 . . . . . Rammed 8 | 1 1 6 . . . . . . Targets Rammed 8 | 1 1 6 . . . . . . Kicked . | . . . . . . . . . Crushed . | . . . . . . . . . Highest Temperature 325 | 60 186 325 84 . 22 1 31 9 Average Temperature 76 | 27 50 190 28 . 8 1 14 6 Received Heat Transfer 912 | . 93 123 126 . 144 108 261 57 Effects 1 | . . 1 . . . . . . Shutdowns 1 | . . 1 . . . . . . Siege Activations . | . . . . . . . . . Martial Activations . | . . . . . . . . . Shielding Activations . | . . . . . . . . . Robots Disrupted . | . . . . . . . . . Combat Hostiles . | . . . . . . . . . Robots Corrupted . | . . . . . . . . . Combat Hostiles . | . . . . . . . . . Parts Fried 3 | . . . 3 . . . . . Impact Corruptions . | . . . . . . . . . Robots Melted . | . . . . . . . . . Combat Hostiles . | . . . . . . . . . Parts Melted 6 | . . 2 4 . . . . . Heat Transferred 2499 | 136 633 546 1184 . . . . . Parts Sabotaged . | . . . . . . . . . Parts Stolen . | . . . . . . . . . Parts Stripped . | . . . . . . . . . Power Chain Reactions . | . . . . . . . . . Alert | -11 -10 -10 -10 -7 -5 -5 -5 -5 ------- Run | Yrd Mat Min Sub Scr Fac Upp Upp War Maximum Alert Level . | . . . . . . . . . Low Security (%) 100 | 100 100 100 . . 100 . . . Level 1 . | . . . . . . . . . Level 2 . | . . . . . . . . . Level 3 . | . . . . . . . . . Level 4 . | . . . . . . . . . Level 5 . | . . . . . . . . . High Security . | . . . . . . . . . Max Security . | . . . . . . . . . Peak Influence 166 | 10 114 47 . . 166 . . . Initial 31 | . . 31 . . . . . . Average 21 | 1 26 4 . . 43 . . . Influence Increases 1062 | 15 265 97 . . 480 125 80 . Destroy 0b10 Robot/C 460 | . 160 80 . . 120 80 20 . Destroy 0b10 Robot/NC 85 | 15 15 5 . . 45 5 . . Destroy Leader 96 | . 34 10 . . 42 10 . . Allied During Kill 37 | . . 2 . . 35 . . . Successful Hack 81 | . 19 . . . 62 . . . Disable Machine 30 | . . . . . 30 . . . Destroy Structure 33 | . 7 . . . 26 . . . Partial Spotted 15 | . . . . . 15 . . . Lose Combat Pursuer 225 | . 30 . . . 105 30 60 . Influence Decreases 1062 | 15 183 179 . . 314 291 80 . Entered New Map 113 | . . 51 . . . 62 . . Time Decay 762 | 15 183 98 . . 221 175 70 . Lost Part 87 | . . 10 . . 13 54 10 . Lost Ally 100 | . . 20 . . 80 . . . Squads Dispatched 6 | . . 1 . . 5 . . . Investigation . | . . . . . . . . . Extermination 1 | . . . . . 1 . . . Reinforcement 4 | . . . . . 4 . . . Assault 1 | . . 1 . . . . . . Garrison . | . . . . . . . . . Intercept . | . . . . . . . . . Searches Triggered . | . . . . . . . . . Construction Impeded . | . . . . . . . . . Haulers Reinforced . | . . . . . . . . . Active Scanning Responses . | . . . . . . . . . Cargo Convoy Interrupts . | . . . . . . . . . Stealth | -11 -10 -10 -10 -7 -5 -5 -5 -5 --------- Run | Yrd Mat Min Sub Scr Fac Upp Upp War Distress Signals 1 | . . . . . 1 . . . Communications Jammed . | . . . . . . . . . Distress Signals . | . . . . . . . . . Times Spotted 77 | . 16 5 9 . 14 11 10 12 Peak Tracking Total 12 | . 6 4 4 . 5 7 4 12 Tactical Retreats 11 | . 2 . . . 4 2 3 . Traps | -11 -10 -10 -10 -7 -5 -5 -5 -5 ------- Run | Yrd Mat Min Sub Scr Fac Upp Upp War Traps Triggered 1 | . . 1 . . . . . . Indirectly . | . . . . . . . . . Trap Hack Attempts . | . . . . . . . . . Triggered . | . . . . . . . . . Disarmed . | . . . . . . . . . Reprogrammed . | . . . . . . . . . Reused . | . . . . . . . . . Traps Extracted . | . . . . . . . . . Installed . | . . . . . . . . . Triggered . | . . . . . . . . . Machines | -11 -10 -10 -10 -7 -5 -5 -5 -5 ---------- Run | Yrd Mat Min Sub Scr Fac Upp Upp War Machines Disabled 4 | . . . 1 . 2 . 1 . Max in Single Turn 1 | . . . 1 . 1 . 1 . Machines Repaired . | . . . . . . . . . Machines Dismantled . | . . . . . . . . . Machines Sabotaged . | . . . . . . . . . Overloaded Fab Kills . | . . . . . . . . . Hacking | -11 -10 -10 -10 -7 -5 -5 -5 -5 --------- Run | Yrd Mat Min Sub Scr Fac Upp Upp War Machines Accessed 34 | . 9 1 1 6 7 . 1 9 Terminals 14 | . 8 . . . 6 . . . Fabricators . | . . . . . . . . . Repair Stations . | . . . . . . . . . Recycling Units 1 | . 1 . . . . . . . Scanalyzers 1 | . . . . . 1 . . . Garrison Access . | . . . . . . . . . Total Hacks 93 | . 36 1 1 14 24 . 1 16 Successful 59 | . 15 1 1 14 11 . 1 16 Failed 34 | . 21 . . . 13 . . . Catastrophic 2 | . 1 . . . 1 . . . Database Lockouts . | . . . . . . . . . Manual 46 | . 28 . . . 18 . . . Terminals 49 | . 31 . . . 18 . . . Fabricators . | . . . . . . . . . Repair Stations . | . . . . . . . . . Recycling Units 5 | . 5 . . . . . . . Scanalyzers 6 | . . . . . 6 . . . Garrison Access . | . . . . . . . . . Terminal Hacks 37 | . 4 1 1 14 . . 1 16 Record 26 | . . . . 12 . . . 14 Robot Analysis 1 | . 1 . . . . . . . Prototype ID Bank 1 | . 1 . . . . . . . Open Door 5 | . . 1 . 1 . . 1 2 Terminal Index 1 | . 1 . . . . . . . Locate Traps 1 | . 1 . . . . . . . Proto ID Catalog 2 | . . . 1 1 . . . . Fabricator Hacks . | . . . . . . . . . Repair Station Hacks . | . . . . . . . . . Recycling Unit Hacks 2 | . 2 . . . . . . . Report Inventory 1 | . 1 . . . . . . . Retrieve Components 1 | . 1 . . . . . . . Scanalyzer 5 | . . . . . 5 . . . Retrieve Study 5 | . . . . . 5 . . . Garrison Access Hacks . | . . . . . . . . . Unauthorized Hacks 14 | . 9 . . . 5 . . . Terminals 14 | . 9 . . . 5 . . . Botnet 3 | . 3 . . . . . . . Operators 1 | . 1 . . . . . . . Skim 10 | . 5 . . . 5 . . . Fabricators . | . . . . . . . . . Repair Stations . | . . . . . . . . . Recycling Units . | . . . . . . . . . Scanalyzers . | . . . . . . . . . Garrison Access . | . . . . . . . . . Data Cores Recovered 1 | . . . . . 1 . . . Used . | . . . . . . . . . Hacking Detections 15 | . 9 . . . 6 . . . Full Trace Events . | . . . . . . . . . Feedback Events . | . . . . . . . . . Feedback Blocked . | . . . . . . . . . Robot Schematics Acquired . | . . . . . . . . . Robots Built . | . . . . . . . . . Authchips . | . . . . . . . . . Time . | . . . . . . . . . Total Robot Build Rating . | . . . . . . . . . Part Schematics Acquired . | . . . . . . . . . Parts Built . | . . . . . . . . . Authchips . | . . . . . . . . . Time . | . . . . . . . . . Total Part Build Rating . | . . . . . . . . . Part Studies Acquired 5 | . . . . . 5 . . . Parts Repaired . | . . . . . . . . . Time . | . . . . . . . . . Parts Recycled . | . . . . . . . . . Recycled Matter . | . . . . . . . . . Retrieved Matter . | . . . . . . . . . Retrieved Components 6 | . 6 . . . . . . . Parts Scanalyzed . | . . . . . . . . . Part Schematics Acquired . | . . . . . . . . . Parts Damaged . | . . . . . . . . . Bothacking | -11 -10 -10 -10 -7 -5 -5 -5 -5 ------------ Run | Yrd Mat Min Sub Scr Fac Upp Upp War Used RIF Installer . | . . . . . . . . . Robots Hacked 3 | . 3 . . . . . . . Non-combat 3 | . 3 . . . . . . . Combat . | . . . . . . . . . Robot Hacks Applied 4 | . 4 . . . . . . . parse_system 2 | . 2 . . . . . . . no_distress 1 | . 1 . . . . . . . find_recycling 1 | . 1 . . . . . . . Relay Couplers Released . | . . . . . . . . . Fabnet Peak Effective % . | . . . . . . . . . Robots Rewired 5 | . . . . . 5 . . . Allies Hacked . | . . . . . . . . . Hacks Repelled 1 | . . . . . . 1 . . Allies | -11 -10 -10 -10 -7 -5 -5 -5 -5 -------- Run | Yrd Mat Min Sub Scr Fac Upp Upp War Total Allies 6 | . . 1 . . 5 . . . Largest Group 5 | . . 1 . . 5 . . . Highest-Rated Group 114 | . . 31 . . 114 . . . Highest-Rated Ally 49 | . . 31 . . 49 . . . Total Orders . | . . . . . . . . . Ally Attacks 43 | . . 4 . . 39 . . . Total Damage 540 | . . 61 . . 479 . . . Kills 6 | . . 1 . . 5 . . . Allies Corrupted . | . . . . . . . . . Allies Melted . | . . . . . . . . . Intel | -11 -10 -10 -10 -7 -5 -5 -5 -5 ------- Run | Yrd Mat Min Sub Scr Fac Upp Upp War Active Infowar (turns) 1862 | . . . . . 600 327 275 660 Terrain 3 | . . . . . 3 . . . Machine Analysis 1747 | . . . . . 600 327 160 660 Cloaking 439 | . . . . . 126 . 275 38 Jamming 4 | . . . . . . . . 4 ECM 100 | . . . . . . 100 . . Robot Analysis Total 1 | . 1 . . . . . . . Derelict Logs Recovered 9 | . . 2 1 4 . 1 1 . Drone Launches . | . . . . . . . . . Drone Recoveries . | . . . . . . . . . Exploration | -11 -10 -10 -10 -7 -5 -5 -5 -5 ------------- Run | Yrd Mat Min Sub Scr Fac Upp Upp War Turns Passed 7662 | 105 957 1013 1428 2249 604 360 286 660 Spaces Moved 5669 | 52 534 587 825 1533 825 348 292 673 Core 24 | 3 . . 4 17 . . . . Treads 1257 | 49 534 587 87 . . . . . Legs 1378 | . . . 354 1024 . . . . Wheels 803 | . . . 380 423 . . . . Hover . | . . . . . . . . . Flight 2207 | . . . . 69 825 348 292 673 Fastest Speed 34 | 50 160 160 110 80 34 34 80 37 Average Speed 121 | 153 160 160 155 140 47 80 89 96 Slowest Speed 550 | 160 160 160 500 550 97 197 97 97 Overloaded Moves . | . . . . . . . . . Propulsion Burnouts . | . . . . . . . . . Robots Hopped . | . . . . . . . . . Potential Cave-ins . | . . . . . . . . . Cave-ins Triggered . | . . . . . . . . . Exploration Rate (%) 60 | 5 87 91 56 84 26 54 52 90 Regions Visited 8 Branch Regions 6 Pre-discovered Areas 1 | . . . . 1 . . . . Known Exits Taken 3 | . . . . . 1 1 1 . Unknown Exits Taken 5 | 1 1 1 1 1 . . . . Scrap Searched 19 | . . 1 3 10 . 3 2 . Spaces Dug 17 | . . . . . 14 3 . . Terrain Destroyed 49 | . 7 . 25 . 14 3 . . Melee 17 | . . . . . 14 3 . . Projectile . | . . . . . . . . . AOE 32 | . 7 . 25 . . . . . Terrain Rammed . | . . . . . . . . . Walls Destroyed . | . . . . . . . . . Machines Disabled . | . . . . . . . . . Actions | -11 -10 -10 -10 -7 -5 -5 -5 -5 --------- Run | Yrd Mat Min Sub Scr Fac Upp Upp War Total 6183 | 68 597 636 899 1630 972 391 308 682 Wait 97 | . 9 10 12 55 8 3 . . Move 5662 | 52 533 586 824 1532 824 347 291 673 Hop . | . . . . . . . . . Pick Up 61 | 6 15 6 9 11 12 . 2 . Fast Attach 39 | 6 . 2 3 7 8 7 4 2 Attach 15 | 1 . 1 2 . 7 . 2 2 Detach 2 | . . . . . 1 1 . . Swap 26 | . 6 4 8 5 3 . . . Drop 64 | . 7 9 10 20 6 6 1 5 Fire 66 | 3 20 12 31 . . . . . Melee 86 | . 6 . . . 45 27 8 . Ram . | . . . . . . . . . Kick . | . . . . . . . . . Crush 7 | . 1 6 . . . . . . Escape Stasis . | . . . . . . . . . Rewire 58 | . . . . . 58 . . . Trap . | . . . . . . . . . Miscellaneous . | . . . . . . . . . Route ------- -11/Scrapyard -10/Materials (discovered 5 exits: [*Mat x2] / *Min x2 / *Sub) -10/Mines (discovered 4 exits: [*Mat x2] / *Exi / *Sub) -10/Subcaves (discovered 4 exits: [*Mat x2] / Rec / *Scr) -7/Scraptown -5/Factory (discovered 3 exits: [*Fac] / *Upp x2) -5/Upper Caves -5/Upper Caves (discovered 2 exits: [*Fac] / *War) -5/Warlord (discovered 1 exit: *Pro) History --------- Turn | Location | Event 14 | -11/Scrapyard | Discovered new exit (range 15) 106 | -11/Scrapyard | Entered Materials 177 | -10/Materials | Discovered new exit (range 16) 178 | -10/Materials | Discovered new exit (range 6) 261 | -10/Materials | Discovered new exit (range 14) 316 | -10/Materials | Build established: Mutant 448 | -10/Materials | Discovered new exit (range 9) 650 | -10/Materials | Discovered new exit (range 16) 765 | -10/Materials | Learned location of 1 exit from Recycling 798 | -10/Materials | Learned Storage security intel 820 | -10/Materials | Learned 4 Recycling zone layouts 830 | -10/Materials | Learned Materials emergency access door positions 849 | -10/Materials | Loaded intel: 8 trap records 878 | -10/Materials | Learned Storage stockpile data 1063 | -10/Materials | Entered Mines 1093 | -10/Mines | Met a Derelict testing a Signal Generator 1179 | -10/Mines | Discovered new exit (range 11) 1275 | -10/Mines | Discovered new exit (range 9) 1307 | -10/Mines | Met a Derelict who couldn't figure out how to use a Trap Extractor 1695 | -10/Mines | Identified exit to Exiles 1718 | -10/Mines | Learned location of 1 exit from Materials 1740 | -10/Mines | A weapon hastily lodged in a ceiling crevice suddenly fell to the ground 1847 | -10/Mines | Discovered new exit (range 7) 1902 | -10/Mines | Deemed a non-threat by the Exiles lab entrance 2076 | -10/Mines | Entered Subcaves 2077 | -10/Subcaves | Approached by a straggling Scientist 2168 | -10/Subcaves | Discovered new exit (range 5) 2353 | -10/Subcaves | Visited 4L-MR0's lab 2382 | -10/Subcaves | Found Flightbrick 2486 | -10/Subcaves | Discovered new exit (range 9) 2488 | -10/Subcaves | Identified exit to Recycling 2620 | -10/Subcaves | Scientist uncovered a shortcut to Scraptown 3261 | -10/Subcaves | Core integrity fell below 50% 3263 | -10/Subcaves | Ambushed by Subdweller buried in earth 3263 | -10/Subcaves | Ambushed by Subdweller buried in earth 3275 | -10/Subcaves | Core integrity fell below 20% 3310 | -10/Subcaves | Lost 4 parts (2n2w) 3504 | -10/Subcaves | Entered Scraptown 3621 | -7/Scraptown | Visited Cyclists 3795 | -7/Scraptown | Visited Bundlers 3884 | -7/Scraptown | Scanned Subdweller tech in exchange for log data 3891 | -7/Scraptown | Learned Research emergency access door positions 3895 | -7/Scraptown | Learned location of 1 exit from Research 3898 | -7/Scraptown | Learned location of Extension (-6) 4189 | -7/Scraptown | Visited UFD Registry 4189 | -7/Scraptown | Registered with UFD as "Carbondisc" 4339 | -7/Scraptown | Visited Modified Component R&D 4379 | -7/Scraptown | Visited Sword Containment 4435 | -7/Scraptown | Visited DA-N13 Charitable Foundation 4440 | -7/Scraptown | Found DCF Scrap (30 items) 4475 | -7/Scraptown | Visited Infowarlord's Domain 4484 | -7/Scraptown | Found Exp. Terrain Scan Processor 4653 | -7/Scraptown | Visited Science Guys 4697 | -7/Scraptown | Visited Abandonware Association 4711 | -7/Scraptown | Learned abandonware demo "TRNCOAT.EXE" 4753 | -7/Scraptown | Visited Scrap Suit Storage 4816 | -7/Scraptown | Visited Symbiants 5218 | -7/Scraptown | Visited Fellowship of the Rings 5273 | -7/Scraptown | Visited Shadow of the Wyrm 5364 | -7/Scraptown | Visited Science Testing Area 5385 | -7/Scraptown | Visited TADAMA 5693 | -7/Scraptown | Met Optimus 5693 | -7/Scraptown | Accepted into 0bPrime 5748 | -7/Scraptown | Discovered new exit (range 5) 5753 | -7/Scraptown | Entered Factory 5753 | -5/Factory | Evolved 10 slots: Power x1, Propulsion x4, Utility x5 5754 | -5/Factory | Attached Flightbrick, gained temporary slots: Utility x3 6061 | -5/Factory | Discovered new exit (range 15) 6066 | -5/Factory | Identified exit to Upper Caves 6101 | -5/Factory | Lost 3 allies 6114 | -5/Factory | Spotted B-75 Beast 6138 | -5/Factory | Discovered new exit (range 10) 6202 | -5/Factory | Discovered exit to Upper Caves (range 15) 6357 | -5/Factory | Entered Upper Caves 6442 | -5/Upper Caves | Attracted the attention of an 0b10 checkpoint 6490 | -5/Upper Caves | Build established: Hacker-Mutant 6630 | -5/Upper Caves | Encountered a Warlord checkpoint 6641 | -5/Upper Caves | Ambushed by research squad 6681 | -5/Upper Caves | Learned Factory terminal intel 6697 | -5/Upper Caves | Lost 3 allies 6708 | -5/Upper Caves | Discovered new exit (range 15) 6715 | -5/Upper Caves | Lost 3 parts (1p1n1u) 6717 | -5/Upper Caves | Identified exit to Upper Caves 6717 | -5/Upper Caves | Entered another Upper Caves area 6717 | -5/Upper Caves | Discovered new exit (range 11) 6748 | -5/Upper Caves | Spotted B-75 Beast 6779 | -5/Upper Caves | Learned Factory trap positions 6803 | -5/Upper Caves | Attacked by a delusional Derelict stockpiling parts 6913 | -5/Upper Caves | Attracted the attention of an 0b10 checkpoint 6994 | -5/Upper Caves | Discovered new exit (range 10) 7002 | -5/Upper Caves | Identified exit to Warlord 7003 | -5/Upper Caves | Entered Warlord 7027 | -5/Warlord | Discovered new exit (range 14) 7037 | -5/Warlord | Identified exit to Proximity Caves 7072 | -5/Warlord | System corruption cleaned by Quarantine Array 7474 | -5/Warlord | Rebuked by Warlord 7499 | -5/Warlord | Warlord's base attacked by MAIN.C 7626 | -5/Warlord | Opened side exit 7663 | -5/Warlord | Self-destructed Last Messages --------------- VC-ZRL(c): Vortex technology is great, if only we could figure out how to stabilize the weapon itself. Take some prototypes if you'd like to experiment. 07589_ ANNOUNCEMENT: MAIN.C reinforcements approaching through caves, arriving soon. 07599_ ANNOUNCEMENT: Detected 2 Grunt squads, 2 Melee squads. 07605_ The tunnel wall slides away. 07608_ Connecting with WAR.Sys... >>Open Door Sealed Heavy Doors opened. 07626_ The tunnel wall slides away. 07654_ Critical hit (Burn: +37). 07659_ The unstable cave ceiling collapses. 07661_ Dropped Lrg. Storage Unit. 07662_ Acquired Adv. Melee Analysis Suite. 07663_ Flightbrick destroyed. 07663_ Temporary Utility slot lost. Map ----- +----------------------------------------------------+ | ??????????????????????# ##??? | | ???????????????????????# ### ### ##? | | ????????????????????????# ^ ##?? #? | | ????????????????????????### ##?? #? | | ??????""??????????????????# #?? ##? | | ?????#""#?????????????????## ##? #?? | | ?????#""#??????????????????## #?# ##? | | ######""#####???????????????## ##?# #? | | # "" "############?????## ### ##? | | # "" """"""""""""#??????## # ##?? | | # "" """"""""""""#?####?## #???? | | + ^ ### ### ##??? | | + ^ + ## #??? | | +^ ^ ^+ #### #??? | | + #### ##??# #??? | | # "" """"""""""""#??## d #???# ##?? | | # "" """"""""""""#???# d #?### #?? | | # "" "############???#d #### # #?? | | ######""#####??????????????# b#?# #?? | | ?????#""#????????????????##b ### #?? | | ?????#""#??????????????### ### ##?? | | ??????""??????????????## # #??? | | ??????????????????????# ### ##??? | | ????????????????????### #?## #???? | | ????????????????????# [=[ #??# #???? | | ?????????????????????# @! #??## ##??? | | ?????????????????????# =] #??## #??? | | #????????????????????# ##?## #### | | #????????????????????# #?# ? | | #?????????????????### ### ?? | | #????????????????## g ## #??? | | #????????????????# #### ## #??? | | #????????????????# ##?# g ## ##??? | | ###??????????????# ## #?##g g #???? | | #??????????????###### #??### ##???? | | #??????????????????# ##????######????? | | #??????????????????# ##???????????????? | | #??????????????????# #????????????????? | | ! #??????????????????# #????????????????? | | ! #??????????????????# #????????????????? | | #??????????????????# #????????????????? | | #??????????????????# #????????????????? | | #?????###??????????# #????????????????? | | +########X############ #????????????????? | | ^ #????????????????? | | #????????????????? | | #########################????????????????? | | ?????????????????????????????????????????? | | ?????????????????????????????????????????? | | ?????????????????????????????????????????? | +----------------------------------------------------+ Best States ------------- Heat Dissipation 40 Energy Generation 33 Energy Capacity 530 Matter Stores 300 Matter Capacity 300 Sight Range 16 Terrain Scan Density 1010 ECM Strength 2 Jamming Range 14 Cloak Strength 2 Additional Mass Support 9 Core Shielding 20 Propulsion Shielding 33 Melee Speed Boost 20 Evasion (%) 71 Targeting Accuracy 8 Melee Accuracy 8 Recoil Reduction 2 Defensive Hacking 24 Trap Extractor Capacity 6 Item Schematics ----------------- None Robot Schematics ------------------ None Fabricated ------------ Nothing Repaired ---------- Nothing Studied --------- Lgt. Deuterium Engine | -5/Factory | Hacked Xenon Bombardment Thruster | -5/Factory | Hacked Deuterium Engine | -5/Factory | Hacked KE Penetrator | -5/Factory | Hacked Rocket Launcher | -5/Factory | Hacked Alien Tech Used ----------------- None Achievements -------------- Civilization 2243 DATA ERROR: Steam Global Achievement% Do Not Disturb For Emergencies Only Hackathon Item+ Junior Dev Link The Feds Mistaken Identity Nice Directions, Buddy Not Today, Chutes Organ Harvest Overwhelming There's More Where That Came From We Love MA Challenges ------------ None Game ------ Seed ExoskeletonNovaRipper Manual? 0 Play Time 00:49:35 Cumulative 109.2 hours Start 2025.10.22 @ 15:06:53 End 2025.10.22 @ 15:55:55 Sessions 1 Manual Loads 0 Difficulty Rogue Special Mode None Game No. 294 Rogue 292 Adventurer 2 Explorer 0 Win Type - Total 1 Types 1/0/0/0/0/0/0/0/0/0 Lore% 77 Gallery% 60 Achievement% 30 Wizard Run 0 Options --------- Layout 2 ASCII 0 Keyboard 0 Movement Numpad Keybinds 0 Fullscreen 2 Font 24/Smallcaps Map View 50x44 Zoom Use 0% Tactical HUD 1 Map Filters NONE Filters NONE Steam 1 RUN: a1ecb58c-0ccc-4ced-8632-c9e15a203231